bitfinex-derivatives/quotes_SOLF0:USTF0_20240926
["timestamp","ask_amount","ask_price","bid_price","bid_amount"]
[1727372936076,5.12,156.05,156.0,3.2041]
[1727372936269,5.12,156.05,155.98,76.84]
[1727372936270,5.12,156.05,155.99,3.23004639]
[1727372936469,16.64,156.05,155.99,3.23004639]
[1727372936768,19.8433,156.05,156.01,3.204]
[1727372936973,16.64,156.05,155.99,3.23004639]
[1727372937176,16.64,156.05,155.98,76.84]
[1727372937673,16.64,156.05,155.98,80.02601737]
[1727372937873,16.64,156.05,156.02,3.2038]
[1727372938670,16.64,156.05,155.98,3.18601737]
[1727372938879,16.64,156.05,155.97,15.38]
[1727372939270,16.64,156.05,156.02,3.2037]
[1727372939473,16.64,156.05,156.02,3.17191853]
[1727372939768,16.64,156.05,155.99,15.38]
[1727372939977,16.64,156.05,156.04,3.2035]
[1727372940175,16.64,156.05,155.95,59.27533754]
[1727372940472,16.64,156.05,155.96,15.38]
[1727372941676,16.64,156.05,156.02,3.2038]
[1727372942478,16.64,156.05,155.96,15.38]
[1727372942479,15.38,156.04,156.0,3.2041]
[1727372942676,15.38,156.04,155.95,62.53089736]
[1727372942876,3.2037,156.03,155.95,62.53089736]
[1727372943677,3.2037,156.03,155.99,3.2044]
[1727372944072,5.851,156.03,155.99,3.2044]
[1727372944277,3.2039,156.02,155.99,3.2044]
[1727372944589,15.38,156.02,155.98,3.2046]
[1727372944879,15.38,156.02,155.95,62.44274195]
[1727372945271,15.38,156.02,155.99,3.2044]
[1727372945871,2.6473,156.03,155.95,62.44274195]
[1727372946085,16.64,156.05,155.96,15.38]
[1727372946284,16.64,156.05,155.96,18.0678]
[1727372947291,16.64,156.05,155.98,15.38]
[1727372947476,16.64,156.05,156.04,3.2035]
[1727372947682,16.64,156.05,156.04,6.40393692]
[1727372947981,10.3795,156.05,156.04,6.40393692]
[1727372949784,10.3795,156.05,156.04,3.2035]
[1727372950186,19.5795,156.05,156.04,3.2035]
[1727372954681,19.5795,156.05,156.0,15.38]
[1727372954885,19.5795,156.05,155.98,15.38]
[1727372955493,19.5795,156.05,156.0,15.38]
[1727372955992,19.5795,156.05,156.02,15.38]
[1727372956386,19.5795,156.05,156.04,18.5835]
[1727372956589,14.32,156.05,156.04,21.70940465]
[1727372960399,13.3855,156.05,156.04,21.70940465]
[1727372961296,20.6555,156.05,156.04,21.70940465]
[1727372961497,16.47,156.05,156.04,21.70940465]
[1727372963400,16.47,156.05,156.04,6.32940465]
[1727372965000,21.59,156.05,156.04,6.32940465]
[1727372965203,21.59,156.05,156.04,3.2035]
[1727372967410,21.59,156.05,156.04,18.5835]
[1727372967601,26.71,156.05,156.04,18.5835]
[1727372969809,26.71,156.05,156.04,3.2035]
[1727372970310,26.71,156.05,156.0,15.38]
[1727372971216,26.71,156.05,156.04,3.2035]
[1727372971811,26.71,156.05,155.95,68.98159004]
[1727372972011,26.71,156.05,155.96,92.26]
[1727372972211,3.2036,156.04,155.99,3.2043]
[1727372972518,26.71,156.05,155.99,3.2043]
[1727372972718,1.2949,156.03,155.99,3.2043]
[1727372973311,1.2949,156.03,156.0,3.2043]
[1727372975216,1.2949,156.03,155.96,15.38]
[1727372975423,1.2949,156.03,155.98,15.38]
[1727372976821,1.2949,156.03,156.02,3.2039]
[1727372977417,4.4986,156.03,155.99,3.2043]
[1727372977627,4.4986,156.03,155.95,62.57099004]
[1727372977927,2.7372,156.02,155.95,62.57099004]
[1727372978719,2.7372,156.02,155.99,3.2044]
[1727372979325,2.7372,156.02,155.95,59.40358563]
[1727372979833,2.7372,156.02,155.96,3.22369119]
[1727372980129,2.7372,156.02,155.95,59.40358563]
[1727372980130,3.86630881,155.96,155.95,62.60888563]
[1727372980317,3.86630881,155.96,155.95,65.80597712]
[1727372983326,8.98630881,155.96,155.95,65.80597712]
[1727372990535,8.98630881,155.96,155.95,6.40239149]
[1727372992730,14.10630881,155.96,155.95,6.40239149]
[1727372994338,14.10630881,155.96,155.95,16.25239149]
[1727372996439,29.74630881,155.96,155.95,16.25239149]
[1727373000442,29.74630881,155.96,155.95,6.40239149]
[1727373000646,29.74630881,155.96,155.95,16.25239149]
[1727373001246,2.7372,156.02,156.01,3.2041]
[1727373001247,1.3896,156.02,156.01,3.2041]
[1727373001637,9.85,156.07,156.04,3.2034]
[1727373002037,9.85,156.08,156.03,13.09527977]
[1727373002236,9.85,156.08,156.03,9.85]
[1727373002436,9.85,156.08,156.05,3.2031]
[1727373002836,6.77,156.06,156.05,3.2031]
[1727373005147,6.77,156.06,156.05,13.0531]
[1727373007150,3.1717737,156.23,156.05,9.85]
[1727373007350,9.85,156.16,156.1,9.85]
[1727373007748,3.2007,156.18,156.13,3.2015]
[1727373007951,3.9656,156.2,156.12,9.85]
[1727373007952,9.85,156.17,156.12,9.85]
[1727373008144,9.85,156.18,156.13,9.85]
[1727373008344,9.85,156.18,156.15,3.2012]
[1727373008545,9.85,156.18,156.13,9.85]
[1727373009056,5.73,156.14,156.13,13.0516]
[1727373009354,12.13,156.14,156.13,3.2016]
[1727373010153,12.13,156.14,156.13,13.0516]
[1727373010352,12.13,156.14,156.13,18.5716]
[1727373010946,3.9656,156.2,156.18,3.2004]
[1727373011147,21.7597,156.2,156.18,3.2004]
[1727373011349,21.7597,156.2,156.16,15.37]
[1727373011744,21.7597,156.2,156.19,3.2004]
[1727373012754,20.4181,156.2,156.19,3.2004]
[1727373013256,20.4181,156.2,156.16,15.37]
[1727373013551,20.4181,156.2,156.19,3.2004]
[1727373013748,20.4181,156.2,156.16,15.37]
[1727373014351,20.4181,156.2,156.18,3.2005]
[1727373016848,7.66,156.19,156.18,3.2005]
[1727373018849,7.66,156.19,156.17,3.2007]
[1727373019754,7.66,156.19,156.14,15.37]
[1727373020056,7.66,156.19,156.12,18.56273904]
[1727373020252,10.8605,156.19,156.14,3.2012]
[1727373020453,7.66,156.19,156.11,76.86]
[1727373020652,23.03,156.19,156.11,76.86]
[1727373020853,1.2807,156.18,156.12,3.15947044]
[1727373021053,1.2807,156.18,156.12,15.37]
[1727373021259,1.2807,156.18,156.12,18.63223567]
[1727373021558,1.2807,156.18,156.15,3.2012]
[1727373022057,1.2807,156.18,156.12,18.63223567]
[1727373022758,7.6807,156.18,156.14,3.2013]
[1727373023058,7.6807,156.18,156.12,18.63223567]
[1727373023250,1.2551,156.17,156.12,18.63223567]
[1727373023451,1.2551,156.17,156.12,3.26223567]
[1727373023660,4.4559,156.17,156.12,3.2018]
[1727373023957,1.2551,156.17,156.1,15.37]
[1727373024149,1.2551,156.17,156.05,85.7309]
[1727373024150,1.2551,156.17,156.09,15.37]
[1727373024553,3.2011,156.16,156.11,3.202]
[1727373025461,3.2012,156.15,156.1,6.47819367]
[1727373025660,3.2012,156.15,156.1,3.27609367]
[1727373025860,15.37,156.16,156.07,15.37]
[1727373026051,1.3326,156.14,156.08,3.22518984]
[1727373026658,3.2019,156.12,156.07,3.2028]
[1727373026854,1.3326,156.14,156.05,15.37]
[1727373026855,16.7026,156.14,156.05,15.37]
[1727373027063,5.12,156.12,156.05,15.37]
[1727373027259,5.12,156.12,156.06,3.19151893]
[1727373027854,3.2022,156.11,156.06,6.39451893]
[1727373028263,5.12,156.12,156.06,3.19151893]
[1727373028464,8.3219,156.12,156.07,3.2028]
[1727373028668,8.3219,156.12,156.06,3.19151893]
[1727373029268,20.49,156.12,156.02,76.84]
[1727373029565,1.261,156.11,156.02,76.84]
[1727373029767,3.2026,156.09,156.04,3.2034]
[1727373030072,1.312,156.08,156.02,76.84]
[1727373030363,1.2928,156.07,156.02,80.0437]
[1727373030965,4.4958,156.07,156.02,3.2037]
[1727373032661,1.2928,156.07,156.03,3.2037]
[1727373033361,4.4958,156.07,156.02,3.2038]
[1727373034068,4.4958,156.07,155.97,3.28057577]
[1727373034069,1.2928,156.07,155.97,18.65057577]
[1727373034258,1.2928,156.07,155.97,15.37]
[1727373034458,15.37,156.06,155.96,3.19305921]
[1727373035168,15.37,156.06,155.97,15.37]
[1727373035368,15.37,156.06,155.97,18.62672953]
[1727373035568,3.2033,156.05,155.97,18.62672953]
[1727373036659,15.37,156.06,155.99,3.2045]
[1727373036861,15.37,156.06,155.97,15.37]
[1727373036862,1.2882,156.04,155.97,15.37]
[1727373037169,3.2038,156.03,155.97,15.37]
[1727373037466,3.2038,156.03,155.97,18.52301326]
[1727373037862,4.4917,156.04,155.99,3.2045]
[1727373038262,4.4917,156.04,155.97,18.52301326]
[1727373038263,6.91,156.03,155.97,18.52301326]
[1727373038458,6.91,156.03,156.0,3.2041]
[1727373039667,6.91,156.03,155.99,3.2044]
[1727373039868,6.91,156.03,155.97,18.52301326]
[1727373041783,6.91,156.03,156.0,3.2043]
[1727373041979,6.91,156.03,155.97,18.52301326]
[1727373042575,6.91,156.03,155.99,15.37]
[1727373042777,6.91,156.03,156.01,15.37]
[1727373043080,1.2928,156.07,156.01,15.37]
[1727373043384,1.312,156.08,155.96,18.52581769]
[1727373043385,1.312,156.08,156.04,15.37]
[1727373043576,1.3279,156.11,156.08,3.2026]
[1727373043778,1.3279,156.11,156.07,15.37]
[1727373043979,16.6581,156.17,156.07,15.37]
[1727373044176,4.529,156.16,156.09,15.37]
[1727373044376,1.3279,156.16,156.09,15.37]
[1727373044784,4.5289,156.16,156.1,3.2021]
[1727373045883,4.5289,156.16,156.11,3.202]
[1727373046879,1.3279,156.16,156.12,3.2017]
[1727373047181,1.3279,156.16,156.05,1.3194]
[1727373047182,1.3279,156.16,156.11,15.37]
[1727373047980,5.12,156.15,156.12,3.2014736]
[1727373048687,5.12,156.15,156.11,15.37]
[1727373049088,10.24,156.15,156.11,15.37]
[1727373049783,10.24,156.15,156.12,3.2018]
[1727373050286,10.24,156.15,156.12,3.12413487]
[1727373051086,10.24,156.15,156.13,3.2015]
[1727373053793,10.24,156.15,156.12,6.32583487]
[1727373055892,10.24,156.15,156.06,1.1087]
[1727373055893,10.24,156.15,156.09,15.37]
[1727373056284,13.4413,156.15,156.1,3.2021]
[1727373056490,10.24,156.15,156.09,15.37]
[1727373058995,13.4412,156.15,156.09,15.37]
[1727373059695,13.4412,156.15,156.1,3.2021]
[1727373061698,13.4412,156.15,156.11,3.202]
[1727373061997,10.24,156.15,156.09,15.37]
[1727373062394,10.24,156.15,156.12,3.2017]
[1727373062898,10.24,156.15,156.1,3.2021]
[1727373063198,10.24,156.15,156.09,15.37]
[1727373063498,10.24,156.15,156.07,15.37]
[1727373063689,10.24,156.15,156.05,1.3194]
[1727373063690,10.24,156.15,156.05,16.6894]
[1727373064298,16.64,156.15,156.05,16.6894]
[1727373064495,3.2018,156.13,156.09,3.2023]
[1727373067396,15.37,156.11,155.97,6.68905964]
[1727373067702,15.37,156.09,155.99,15.37]
[1727373067898,1.3084,156.08,155.99,15.37]
[1727373069097,1.3084,156.08,156.03,3.2035]
[1727373069502,4.5112,156.08,156.03,3.2035]
[1727373070202,3.2029,156.07,156.03,3.2035]
[1727373071702,3.2031,156.06,156.03,3.2035]
[1727373071897,1.3084,156.08,156.03,3.2035]
[1727373072295,3.203,156.07,156.03,3.2035]
[1727373072800,5.8659,156.1,156.03,15.37]
[1727373073803,5.8659,156.1,156.06,3.2028]
[1727373074400,3.2025,156.09,156.03,15.37]
[1727373074706,2.6636,156.1,156.01,15.37]
[1727373075004,3.2027,156.08,156.04,3.2033]
[1727373076100,3.2027,156.08,156.03,3.2036]
[1727373077507,3.2029,156.07,156.03,3.2036]
[1727373078101,3.2029,156.07,156.02,3.2038]
[1727373078306,2.6636,156.1,155.99,15.37]
[1727373078307,15.37,156.09,155.99,15.37]
[1727373078507,15.37,156.09,156.0,3.2041]
[1727373078803,3.2034,156.05,156.0,3.2041]
[1727373079301,3.2034,156.05,156.01,3.2041]
[1727373079507,3.2035,156.04,155.98,3.1574867]
[1727373079702,15.37,156.07,155.97,15.37]
[1727373080098,15.37,156.07,155.97,18.54267949]
[1727373080300,2.6636,156.1,156.01,15.37]
[1727373081006,3.2028,156.08,156.03,3.2036]
[1727373082008,3.2028,156.08,156.01,15.37]
[1727373082307,3.2028,156.08,156.03,3.2035]
[1727373084907,3.2025,156.09,156.03,15.37]
[1727373085108,2.6636,156.1,156.03,15.37]
[1727373086209,5.8659,156.1,156.06,3.2029]
[1727373087002,2.6636,156.1,156.07,3.2028]
[1727373087412,1.3657,156.1,156.03,15.37]
[1727373088909,1.3657,156.1,156.04,3.2034]
[1727373088910,3.2026,156.08,156.04,3.2034]
[1727373089504,3.203,156.07,156.03,3.2035]
[1727373091409,3.203,156.07,156.04,3.2035]
[1727373094406,15.37,156.09,156.01,15.37]
[1727373094611,3.2032,156.06,156.03,3.2036]
[1727373095918,3.2032,156.06,156.02,3.2038]
[1727373096216,15.37,156.09,155.99,15.37]
[1727373096217,3.2033,156.05,155.99,15.37]
[1727373096611,9.6033,156.05,155.99,15.37]
[1727373096810,9.6033,156.05,156.01,3.204]
[1727373097011,9.6033,156.05,155.99,18.49634502]
[1727373097418,9.6033,156.05,156.01,3.2039]
[1727373099418,6.4,156.05,156.02,3.2038]
[1727373100419,6.4,156.05,156.02,13.0438]
[1727373100619,11.52,156.05,156.02,13.0438]
[1727373101322,11.52,156.05,156.03,3.2036]
[1727373101515,11.52,156.05,156.03,9.84]
[1727373102218,11.52,156.05,156.04,3.2035]
[1727373102617,11.52,156.05,156.03,9.84]
[1727373102618,18.82,156.05,156.03,9.84]
[1727373103022,18.82,156.05,156.03,13.0436]
[1727373104221,18.82,156.05,156.03,9.84]
[1727373104427,18.82,156.05,156.02,9.84]
[1727373104622,18.82,156.05,156.04,9.84]
[1727373106025,18.82,156.05,156.04,13.0435]
[1727373106325,18.82,156.05,155.96,6.41]
[1727373106527,18.82,156.05,156.02,9.84]
[1727373106727,18.82,156.05,156.02,16.28782325]
[1727373108822,18.82,156.05,156.03,3.2036]
[1727373109919,18.82,156.05,156.03,13.0436]
[1727373110121,18.82,156.05,156.04,3.2035]
[1727373111228,18.82,156.05,156.04,13.0435]
[1727373112528,18.82,156.05,156.03,3.2036]
[1727373112723,18.82,156.05,156.01,9.84]
[1727373113429,22.0233,156.05,156.01,13.044]
[1727373113624,28.66,156.05,155.95,78.2079]
[1727373113828,13.0437,156.03,155.95,78.2079]
[1727373114125,13.0437,156.03,155.97,9.84]
[1727373114333,13.0437,156.03,155.98,3.2045]
[1727373115219,13.0439,156.02,155.97,3.2048]
[1727373115526,9.84,156.02,155.97,3.2048]
[1727373115729,9.84,156.01,155.96,9.84]
[1727373115919,9.84,156.01,155.95,3.20428168]
[1727373115920,9.84,155.99,155.91,60.68882083]
[1727373116227,9.84,155.98,155.94,9.84]
[1727373116621,1.3791,156.0,155.95,13.0453]
[1727373117426,5.12,155.99,155.95,13.0453]
[1727373120136,5.12,155.99,155.96,3.2051]
[1727373120533,5.12,155.99,155.95,9.84]
[1727373120734,5.12,155.99,155.96,3.2051]
[1727373121033,5.12,155.99,155.95,9.84]
[1727373121730,5.12,155.99,155.96,3.205]
[1727373122636,5.12,155.99,155.97,3.2049]
[1727373122934,5.12,155.99,155.95,9.84]
[1727373123326,5.12,155.99,155.98,9.84]
[1727373123836,5.12,155.99,155.98,13.0447]
[1727373124025,5.12,155.99,155.98,16.2072125]
[1727373124728,5.12,155.99,155.98,3.2047]
[1727373124929,5.12,155.99,155.98,13.0447]
[1727373125129,5.12,155.99,155.97,13.0448]
[1727373125729,5.12,155.99,155.98,3.2047]
[1727373126439,5.12,155.99,155.97,3.2048]
[1727373128027,5.12,155.99,155.98,3.2047]
[1727373128838,5.12,155.99,155.98,13.0447]
[1727373130034,1.3399,156.07,156.02,3.2038]
[1727373130332,3.2062,155.99,155.96,1.2934]
[1727373130534,1.3399,156.07,155.98,9.84]
[1727373130739,4.5427,156.07,156.03,9.84]
[1727373131034,11.1656,156.06,156.02,9.84]
[1727373131342,11.1656,156.06,155.96,2.4032]
[1727373131343,13.0433,156.05,156.0,9.84]
[1727373132339,13.0433,156.05,156.0,13.0442]
[1727373132840,9.84,156.03,155.99,13.0445]
[1727373133140,9.84,156.03,155.99,9.84]
[1727373133340,9.84,156.03,155.95,3.22531416]
[1727373133341,9.84,156.02,155.97,9.84]
[1727373133639,9.84,156.02,155.98,6.41252081]
[1727373133939,9.84,156.02,155.97,9.84]
[1727373134134,3.2041,156.01,155.97,3.2048]
[1727373135539,13.044,156.02,155.98,3.2047]
[1727373135735,13.044,156.02,155.97,9.84]
[1727373135938,13.044,156.02,155.97,13.0447]
[1727373136132,9.84,156.04,155.98,9.84]
[1727373136644,3.2038,156.03,155.99,3.2043]
[1727373137634,3.2038,156.03,156.0,3.2043]
[1727373138841,11.097,156.05,156.0,9.84]
[1727373139445,9.84,156.03,155.98,3.12542444]
[1727373139744,9.84,156.03,155.93,6.4112]
[1727373139745,9.84,156.02,155.97,9.84]
[1727373140538,13.044,156.02,155.98,3.2046]
[1727373142442,3.204,156.02,155.98,3.2046]
[1727373144550,3.204,156.02,155.99,3.2044]
[1727373145650,15.39,156.02,155.91,1.11]
[1727373145840,15.39,156.0,155.91,15.39]
[1727373146147,1.3425,156.01,155.93,15.39]
[1727373146353,1.3425,156.01,155.94,3.19580957]
[1727373146751,3.2044,156.0,155.96,3.205]
[1727373147556,7.71,155.99,155.96,3.205]
[1727373148252,7.71,155.99,155.94,3.13203439]
[1727373148447,7.71,155.99,155.92,15.39]
[1727373148652,7.71,155.99,155.94,15.39]
[1727373148954,7.71,155.99,155.97,3.2048]
[1727373151057,7.71,155.99,155.98,3.2047]
[1727373152157,7.71,155.99,155.97,3.2048]
[1727373152459,8.19,155.99,155.97,3.2048]
[1727373153552,13.31,155.99,155.97,3.2048]
[1727373155569,13.31,155.99,155.98,3.2047]
[1727373157465,13.31,155.99,155.97,3.2048]
[1727373159873,13.31,155.99,155.96,3.205]
[1727373162372,13.31,155.99,155.96,13.055]
[1727373163568,13.31,155.99,155.98,3.2047]
[1727373164073,13.31,155.99,155.96,9.85]
[1727373164274,13.31,155.99,155.97,3.2048]
[1727373164574,18.43,155.99,155.97,3.2048]
[1727373170774,18.43,155.99,155.96,9.85]
[1727373170975,18.43,155.99,155.98,13.0547]
[1727373171177,12.4274,156.07,155.98,9.85]
[1727373171178,2.5774,156.07,155.98,9.85]
[1727373171480,9.85,156.06,156.02,9.85]
[1727373172277,9.85,156.06,156.01,3.18170628]
[1727373172278,9.85,156.05,156.0,9.85]
[1727373173476,13.0533,156.05,156.0,13.0542]
[1727373173676,9.85,156.04,155.99,9.85]
[1727373174183,9.85,156.04,155.99,12.99704944]
[1727373174480,9.85,156.04,156.0,13.0543]
[1727373175487,13.0533,156.05,156.0,13.0543]
[1727373175978,13.0533,156.05,156.01,3.2041]
[1727373179229,9.85,156.05,156.0,9.85]
[1727373179682,9.85,156.05,155.97,13.11420184]
[1727373179683,9.85,156.02,155.97,13.11420184]
[1727373179875,9.85,156.02,155.99,3.2043]
[1727373180885,13.0539,156.02,155.99,3.2043]
[1727373181186,9.85,156.01,155.96,9.85]
[1727373181492,11.1836,156.01,155.96,9.85]
[1727373181685,14.3878,156.01,155.97,3.2048]
[1727373181886,11.1836,156.01,155.97,3.2048]
[1727373182789,14.3878,156.01,155.97,3.2048]
[1727373186391,4.5378,156.01,155.98,3.2046]
[1727373186588,14.3878,156.01,155.98,3.2046]
[1727373187688,9.85,155.99,155.97,3.2047]
[1727373187889,9.85,155.98,155.89,78.0097]
[1727373188087,9.85,155.97,155.89,78.0097]
[1727373188289,9.85,155.97,155.91,9.85]
[1727373188490,9.85,155.97,155.94,3.2054]
[1727373188694,9.85,155.98,155.93,9.85]
[1727373188992,9.85,155.98,155.95,3.2052]
[1727373189182,9.85,155.98,155.93,9.85]
[1727373189591,9.85,155.98,155.95,3.2053]
[1727373189996,9.85,155.98,155.94,3.21203943]
[1727373190192,9.85,155.98,155.95,3.2053]
[1727373190393,9.85,155.98,155.94,3.21203943]
[1727373190588,9.85,155.98,155.94,9.85]
[1727373190790,9.85,155.98,155.94,13.08575634]
[1727373191296,9.85,155.98,155.95,3.2051]
[1727373191895,7.11,155.97,155.95,3.2051]
[1727373192197,7.11,155.97,155.89,1.1097]
[1727373192493,9.85,155.95,155.92,3.2059]
[1727373193094,9.85,155.93,155.85,76.92]
[1727373193304,9.85,155.91,155.85,76.92]
[1727373193596,9.85,155.91,155.89,3.2065]
[1727373193796,9.85,155.91,155.86,9.85]
[1727373194193,9.85,155.91,155.85,76.92]
[1727373194497,9.85,155.91,155.85,86.77]
[1727373194701,9.85,155.91,155.87,3.2068]
[1727373195895,9.85,155.9,155.87,3.2068]
[1727373196091,9.85,155.9,155.86,3.2071]
[1727373196297,9.85,155.88,155.86,3.2071]
[1727373196800,9.85,155.87,155.82,3.21192613]
[1727373196998,9.85,155.86,155.8,9.85]
[1727373197195,9.85,155.86,155.8,13.10377081]
[1727373197392,9.85,155.84,155.8,3.25377081]
[1727373197592,11.1509,155.86,155.8,9.85]
[1727373197799,11.1509,155.86,155.8,13.13016267]
[1727373198200,11.1509,155.86,155.76,78.2973]
[1727373198500,14.3581,155.86,155.81,3.208]
[1727373198702,11.1509,155.86,155.79,9.85]
[1727373198996,9.85,155.84,155.76,81.51169902]
[1727373199195,9.85,155.84,155.78,9.85]
[1727373199600,9.85,155.84,155.81,3.2082]
[1727373202399,9.85,155.83,155.76,76.94]
[1727373202595,9.85,155.81,155.76,80.19715746]
[1727373202794,9.85,155.8,155.76,80.19715746]
[1727373202999,9.85,155.8,155.77,3.2088]
[1727373204099,9.85,155.8,155.78,17.87231837]
[1727373204594,9.85,155.79,155.78,17.87231837]
[1727373207307,9.85,155.79,155.78,3.2088]
[1727373207599,9.85,155.83,155.8,3.2084]
[1727373207803,9.85,155.83,155.78,9.85]
[1727373208399,9.85,155.84,155.8,9.85]
[1727373208900,9.85,155.84,155.82,3.2078]
[1727373209502,9.85,155.84,155.81,3.2081]
[1727373210504,9.85,155.84,155.82,3.2078]
[1727373210905,1.3009,155.86,155.8,13.10285963]
[1727373211099,9.85,155.85,155.8,13.10285963]
[1727373211700,9.85,155.84,155.8,13.10285963]
[1727373211903,9.85,155.84,155.81,3.2081]
[1727373212203,9.85,155.84,155.78,9.85]
[1727373212393,9.85,155.82,155.78,9.85]
[1727373212599,9.85,155.82,155.77,9.85]
[1727373213909,9.85,155.82,155.8,3.2083]
[1727373214408,10.9209,155.86,155.81,9.85]
[1727373214607,20.7709,155.86,155.81,9.85]
[1727373215000,23.9781,155.86,155.82,3.2079]
[1727373215407,20.7709,155.86,155.83,3.2077]
[1727373216804,9.85,155.85,155.74,6.4192]
[1727373217000,9.85,155.85,155.78,9.85]
[1727373217208,13.0575,155.85,155.78,9.85]
[1727373217411,9.85,155.83,155.81,3.2081]
[1727373217910,9.85,155.84,155.74,6.4192]
[1727373218112,9.85,155.84,155.79,9.85]
[1727373219113,14.1281,155.86,155.81,3.2081]
[1727373219307,9.85,155.85,155.8,9.85]
[1727373219913,20.7709,155.86,155.83,3.2077]
[1727373220108,9.85,155.85,155.79,9.85]
[1727373220410,9.85,155.85,155.81,3.208]
[1727373220612,9.85,155.85,155.8,9.85]
[1727373221114,9.85,155.85,155.82,3.2078]
[1727373221507,10.9209,155.86,155.82,3.2078]
[1727373221508,10.9209,155.86,155.84,3.2075]
[1727373221916,10.9209,155.86,155.82,13.00514071]
[1727373222108,10.9209,155.86,155.85,3.2074]
[1727373222413,10.9209,155.86,155.77,1.3742]
[1727373222711,10.9209,155.86,155.83,3.2076]
[1727373222903,10.9209,155.86,155.82,3.21064039]
[1727373223305,9.62,155.86,155.83,9.85]
[1727373223505,9.62,155.86,155.83,13.02911121]
[1727373223903,9.62,155.86,155.84,3.2076]
[1727373224612,9.62,155.86,155.85,3.2074]
[1727373225018,9.62,155.86,155.62,6.419]
[1727373225213,9.85,155.84,155.77,9.85]
[1727373225409,9.85,155.82,155.77,9.85]
[1727373225806,9.62,155.86,155.8,9.85]
[1727373226013,19.47,155.86,155.81,9.85]
[1727373226312,9.62,155.86,155.78,15.4]
[1727373226613,9.62,155.86,155.78,18.63877969]
[1727373227415,9.62,155.86,155.79,3.2086]
[1727373227814,3.2077,155.84,155.79,3.2086]
[1727373229023,3.2077,155.84,155.78,18.63877969]
[1727373229024,3.2074,155.85,155.8,3.2084]
[1727373229418,3.2074,155.85,155.78,18.63877969]
[1727373230119,5.13,155.84,155.78,18.63877969]
[1727373230516,5.13,155.84,155.81,3.2081]
[1727373230715,19.23,156.04,155.83,15.4]
[1727373230914,2.6416,155.98,155.9,15.4]
[1727373231118,2.6416,155.98,155.93,3.2057]
[1727373231321,2.6416,155.98,155.9,18.65287493]
[1727373231822,2.6416,155.98,155.94,3.2054]
[1727373232127,2.6416,155.98,155.9,18.65287493]
[1727373232321,15.4,155.97,155.87,15.4]
[1727373232829,5.12,155.96,155.87,15.4]
[1727373233322,5.12,155.96,155.92,3.2058]
[1727373235622,5.12,155.96,155.95,3.2053]
[1727373244935,5.12,155.96,155.94,3.2054]
[1727373245637,10.24,155.96,155.94,3.2054]
[1727373245837,10.24,155.96,155.93,3.2057]
[1727373247635,10.24,155.96,155.94,3.2055]
[1727373248735,10.24,155.96,155.93,3.2057]